bitfinex-derivatives/quotes_ETHF0:USTF0_20241129
["timestamp","ask_amount","ask_price","bid_price","bid_amount"]
[1732870239336,3.2078,3565.0,3564.9,0.36820829]
[1732870239728,3.2078,3565.0,3564.9,0.36816304]
[1732870240434,3.29615814,3565.2,3565.1,0.28045]
[1732870240629,3.29615814,3565.2,3565.1,0.36814304]
[1732870240930,3.29615814,3565.3,3565.2,0.28044]
[1732870241130,3.29615814,3565.3,3565.2,0.36813304]
[1732870241326,3.29615814,3565.4,3565.2,0.08769304]
[1732870241532,3.29615814,3565.6,3565.5,0.28042]
[1732870241725,3.29615814,3565.6,3565.5,0.36811304]
[1732870241929,3.29657924,3565.6,3565.5,0.08769304]
[1732870242128,3.29657924,3565.6,3565.5,0.36811304]
[1732870242437,3.29657924,3565.7,3565.5,0.36811304]
[1732870242636,3.29657924,3565.6,3565.5,0.28042]
[1732870242831,3.29657924,3565.7,3565.5,0.08768022]
[1732870243130,3.29657924,3565.7,3565.6,0.28041]
[1732870245432,3.29657924,3565.8,3565.7,0.2804]
[1732870245738,3.29634162,3565.8,3565.7,0.2804]
[1732870246435,3.29634162,3565.8,3565.6,0.28041]
[1732870246633,3.29634162,3565.8,3565.7,0.2804]
[1732870247646,3.29634162,3565.9,3565.8,0.28039]
[1732870248032,0.8318,3566.0,3565.9,0.28039]
[1732870248033,4.12814162,3566.0,3565.9,0.28039]
[1732870249244,0.8318,3566.0,3565.9,0.28039]
[1732870251737,2.19556303,3566.3,3566.2,0.28036]
[1732870251940,2.19556303,3566.4,3566.0,0.4154]
[1732870252145,2.19556303,3566.4,3566.3,0.28036]
[1732870252643,0.4373,3566.5,3566.4,0.28035]
[1732870253038,0.4373,3566.5,3566.0,0.4154]
[1732870253238,2.63286303,3566.5,3566.2,0.28036]
[1732870253543,2.63286303,3566.5,3566.1,0.28037]
[1732870253544,0.71764,3566.5,3566.1,0.28037]
[1732870253948,0.71764,3566.5,3565.9,3.2078]
[1732870254238,0.4373,3566.5,3565.9,3.2078]
[1732870254440,0.4373,3566.5,3566.2,0.28036]
[1732870254744,0.4373,3566.5,3566.3,0.28035]
[1732870255243,0.4373,3566.5,3566.4,0.28035]
[1732870256943,4.8399836,3566.5,3565.8,3.2078]
[1732870257144,2.19138029,3566.1,3565.8,3.2078]
[1732870257334,2.19138029,3566.2,3565.8,3.2078]
[1732870257533,0.4346,3566.0,3565.9,0.28039]
[1732870259148,0.8483,3566.0,3565.9,0.28039]
[1732870259640,0.8483,3566.0,3565.8,3.2078]
[1732870259641,3.32006029,3566.0,3565.8,3.2078]
[1732870259842,3.32006029,3566.0,3565.8,3.48819]
[1732870260038,3.03968029,3566.0,3565.8,3.48819]
[1732870260244,0.28039,3565.8,3565.5,41.08041]
[1732870260444,0.4125,3565.7,3565.5,0.28041]
[1732870260637,0.69291,3565.7,3565.5,0.28042]
[1732870260839,2.60388029,3565.7,3565.5,0.28041]
[1732870261243,2.60388029,3565.7,3565.4,0.28042]
[1732870261647,5.81168029,3565.7,3565.0,0.4375]
[1732870261837,2.47179029,3565.6,3565.3,0.28043]
[1732870262036,2.19138029,3565.6,3565.4,0.28042]
[1732870262345,0.4369,3565.5,3565.3,0.28043]
[1732870262541,0.4369,3565.5,3565.0,0.4375]
[1732870262741,0.4369,3565.5,3565.4,0.28043]
[1732870263547,2.62828029,3565.5,3565.4,0.28043]
[1732870264149,2.62828029,3565.5,3565.3,0.28043]
[1732870264444,2.62828029,3565.5,3565.4,0.28043]
[1732870264841,3.72397044,3565.5,3565.1,40.8]
[1732870265043,0.4369,3565.5,3565.3,0.28043]
[1732870266446,0.4369,3565.5,3565.1,40.8]
[1732870266650,0.4369,3565.5,3565.4,0.28043]
[1732870267345,0.4369,3565.5,3565.3,0.28043]
[1732870267548,0.4369,3565.5,3565.1,40.8]
[1732870267747,0.28044,3565.3,3565.1,41.08045]
[1732870267948,0.4385,3565.2,3565.1,41.08045]
[1732870268146,0.4385,3565.2,3565.1,41.16813995]
[1732870268947,0.4369,3565.5,3565.1,40.88768995]
[1732870269154,0.8754,3565.5,3565.4,0.28043]
[1732870269459,3.90071,3565.7,3565.6,0.28041]
[1732870269460,0.4125,3565.7,3565.6,0.28041]
[1732870269647,6.49487044,3566.1,3565.6,0.08767412]
[1732870269648,3.2078,3566.1,3565.6,0.08767412]
[1732870269852,3.2078,3566.1,3566.0,0.28038]
[1732870270055,3.07749299,3566.8,3566.0,0.08767412]
[1732870270056,0.28034,3566.5,3566.0,0.08767412]
[1732870270244,3.2078,3566.7,3566.1,41.16804412]
[1732870270452,3.2078,3566.3,3566.2,0.08767412]
[1732870270755,2.19109299,3566.7,3566.2,0.28036]
[1732870270756,0.28035,3566.5,3566.2,0.28036]
[1732870272244,3.2078,3566.7,3566.2,0.28036]
[1732870272245,2.19109299,3566.3,3566.2,0.28036]
[1732870272549,2.19109299,3566.3,3566.2,0.36802525]
[1732870272747,3.28707044,3566.5,3566.4,0.28035]
[1732870272748,2.19109299,3566.5,3566.4,0.28035]
[1732870272949,2.19109299,3566.6,3566.5,0.28034]
[1732870273146,2.19109299,3566.6,3566.5,0.36800525]
[1732870274454,3.28707044,3566.7,3566.5,0.36800525]
[1732870274651,3.28707044,3566.7,3566.5,0.28034]
[1732870275345,5.2890836,3566.8,3566.6,0.28033]
[1732870275549,0.8864,3566.8,3566.6,0.28033]
[1732870276551,5.2890836,3566.8,3566.6,0.28033]
[1732870277150,5.2890836,3566.8,3566.4,0.28035]
[1732870277355,4.4026836,3566.6,3566.4,0.28035]
[1732870277555,4.4026836,3566.7,3566.4,0.28035]
[1732870278356,4.4026836,3566.6,3566.4,0.28035]
[1732870280261,2.19747914,3566.6,3566.4,0.28034]
[1732870280860,2.19747914,3566.5,3566.4,0.28034]
[1732870281351,3.29621872,3566.7,3566.5,0.28034]
[1732870282359,3.29621872,3566.6,3566.5,0.28034]
[1732870282956,3.29621872,3566.7,3566.5,0.28034]
[1732870283354,3.29621872,3566.6,3566.5,0.28034]
[1732870284462,0.8864,3566.8,3566.5,0.28034]
[1732870285050,0.8864,3566.8,3566.3,0.8715]
[1732870285051,0.28032,3566.7,3566.3,0.8715]
[1732870285256,0.28033,3566.7,3566.4,0.08765665]
[1732870285459,3.29993539,3566.5,3566.3,0.437]
[1732870285659,3.29993539,3566.5,3566.4,0.3680068]
[1732870287257,5.49989232,3566.5,3566.4,0.0876568]
[1732870287456,5.49989232,3566.5,3566.4,0.3680068]
[1732870288158,5.78023232,3566.5,3566.3,0.71735]
[1732870288362,5.49989232,3566.5,3566.3,0.437]
[1732870288559,5.49989232,3566.5,3566.4,0.28035]
[1732870289658,0.28035,3566.4,3566.2,3.2078]
[1732870289855,0.4091,3566.3,3566.2,3.48816]
[1732870290059,0.8302,3566.3,3566.2,0.36802219]
[1732870290267,0.8302,3566.3,3566.2,0.28036]
[1732870291358,5.49989232,3566.4,3566.3,0.28036]
[1732870291560,5.49989232,3566.5,3565.9,3.90877]
[1732870291865,3.30107185,3566.0,3565.9,3.48819]
[1732870292059,3.30107185,3566.0,3565.9,3.57584585]
[1732870292363,2.80107185,3566.0,3565.9,3.57584585]
[1732870292560,2.30107185,3566.0,3565.9,3.57584585]
[1732870294265,2.2008606,3566.3,3565.9,3.29545585]
[1732870294464,2.2008606,3566.3,3566.2,0.28036]
[1732870296267,2.2008606,3566.3,3566.2,0.36801768]
[1732870296864,2.2008606,3566.3,3566.2,0.28036]
[1732870297466,2.2008606,3566.3,3566.2,0.36801893]
[1732870298867,4.68176914,3566.6,3566.2,0.36801893]
[1732870299175,0.28034,3566.5,3566.3,0.08766287]
[1732870299474,4.40142914,3566.5,3566.4,0.08766287]
[1732870299964,4.68175914,3566.6,3566.4,0.08766287]
[1732870300162,7.88955914,3566.6,3566.5,0.08766287]
[1732870300365,5.92787433,3566.6,3566.5,0.08766287]
[1732870301080,5.64754433,3566.6,3566.5,0.08766287]
[1732870301770,5.64754433,3566.6,3566.5,0.36800287]
[1732870301969,5.92787433,3566.6,3566.5,0.08766287]
[1732870302376,5.64754433,3566.6,3566.5,0.36800287]
[1732870302570,5.92787433,3566.6,3566.5,0.08766287]
[1732870302770,5.92787433,3566.6,3566.5,0.08766022]
[1732870303363,5.64754433,3566.6,3566.5,0.08766022]
[1732870303569,5.64754433,3566.6,3566.5,0.36800022]
[1732870304373,1.24611519,3566.6,3566.5,0.36800022]
[1732870304678,5.64754433,3566.6,3566.5,0.36800022]
[1732870304977,1.24611519,3566.6,3566.5,0.36800022]
[1732870306174,1.24611519,3566.6,3566.5,0.36799807]
[1732870306373,1.24611519,3566.6,3566.5,41.16799807]
[1732870306870,1.24611519,3566.6,3566.5,0.36799807]
[1732870307982,5.64754433,3566.6,3566.5,0.36799807]
[1732870308778,1.24611519,3566.6,3566.5,0.36799807]
[1732870308982,5.64754433,3566.6,3566.5,0.36799807]
[1732870309286,5.64754433,3566.6,3566.5,0.36799694]
[1732870309482,1.24611519,3566.6,3566.5,0.36799694]
[1732870310185,1.24611519,3566.6,3566.5,0.36799708]
[1732870312080,1.24611519,3566.6,3566.5,0.08765708]
[1732870312781,1.24611519,3566.6,3566.5,0.36799708]
[1732870313283,1.24611519,3566.6,3566.5,0.28034]
[1732870313485,1.24611519,3566.6,3566.5,0.36799947]
[1732870313881,1.52644519,3566.6,3566.5,0.08765947]
[1732870314079,1.52644519,3566.6,3566.0,40.8]
[1732870314080,8.12631598,3566.6,3566.4,0.28034]
[1732870314281,1.24611519,3566.5,3565.7,4.76911]
[1732870314586,6.59987079,3566.4,3566.3,0.28035]
[1732870314780,6.59987079,3566.4,3566.3,0.36801504]
[1732870315179,6.59987079,3566.4,3566.0,40.8]
[1732870315381,1.52648519,3566.1,3565.9,0.28038]
[1732870315680,1.52648519,3566.1,3565.8,0.28039]
[1732870315681,2.37779519,3566.0,3565.8,0.28039]
[1732870315882,1.24611519,3565.9,3565.8,0.28039]
[1732870316188,1.24611519,3565.9,3565.7,0.2804]
[1732870316379,1.24611519,3565.9,3565.8,0.28039]
[1732870316380,7.84598598,3565.9,3565.8,0.28039]
[1732870317486,1.24611519,3565.9,3565.8,0.28039]
[1732870318082,1.24611519,3565.9,3565.4,40.8]
[1732870318284,4.41327281,3565.5,3565.4,41.08043]
[1732870318481,4.41327281,3565.6,3565.5,0.28042]
[1732870318784,5.51659101,3565.8,3565.7,0.2804]
[1732870318987,6.7627062,3565.9,3565.8,0.28039]
[1732870319188,1.24611519,3565.9,3565.8,0.28039]
[1732870319687,6.75994043,3565.9,3565.7,0.2804]
[1732870320989,6.75994043,3565.9,3565.4,41.2399]
[1732870321189,5.51382524,3565.9,3565.7,0.2804]
[1732870321384,5.51382524,3565.9,3565.4,41.2399]
[1732870321686,4.41027894,3565.6,3565.5,0.28042]
[1732870321889,4.41027894,3565.7,3565.4,40.8]
[1732870322081,5.51382524,3565.8,3565.6,0.28041]
[1732870322281,1.24611519,3565.7,3565.6,0.28041]
[1732870322483,1.24611519,3565.7,3565.5,0.28041]
[1732870322782,1.24611519,3565.7,3565.4,40.8]
[1732870322783,1.24611519,3565.6,3565.4,40.8]
[1732870322986,4.40996351,3565.5,3565.4,41.08043]
[1732870323180,4.40996351,3565.6,3565.4,40.8]
[1732870323385,4.40996351,3565.6,3565.5,0.28042]
[1732870324089,5.51382524,3565.9,3565.6,0.28041]
[1732870324090,4.40996351,3565.7,3565.6,0.28041]
[1732870324785,4.40996351,3565.7,3565.6,0.36808447]
[1732870325589,1.52651519,3565.8,3565.6,0.08767447]
[1732870325890,1.52651519,3565.8,3565.5,0.28041]
[1732870325891,6.75994043,3565.8,3565.5,0.28041]
[1732870326088,5.6541487,3565.6,3565.5,0.28041]
[1732870326291,5.6541487,3565.6,3565.5,0.36808988]
[1732870327384,1.24611519,3565.6,3565.5,0.36808988]
[1732870329787,4.40803351,3565.8,3565.5,40.88767988]
[1732870329991,4.40803351,3565.8,3565.7,0.2804]
[1732870330186,1.24611519,3565.9,3565.8,0.28039]
[1732870330187,5.6541487,3565.9,3565.8,0.28039]
[1732870330786,1.24611519,3565.9,3565.8,0.28039]
[1732870331383,5.65191877,3565.9,3565.8,0.28039]
[1732870331588,4.40580358,3566.1,3566.0,0.28038]
[1732870331787,3.76869055,3566.6,3566.0,0.08766557]
[1732870331788,4.40580358,3566.3,3566.0,0.08766557]
[1732870331988,4.40580358,3566.4,3566.2,0.28036]
[1732870332195,4.40580358,3566.4,3566.3,0.28036]
[1732870332489,4.40580358,3566.4,3566.2,0.4048]
[1732870332490,7.59854043,3566.5,3566.2,0.4048]
[1732870332693,6.35242524,3566.5,3566.4,0.28035]
[1732870332894,7.59854043,3566.5,3566.4,0.28035]
[1732870334096,7.59854043,3566.5,3566.1,0.4368]
[1732870334288,5.51382524,3566.4,3566.3,0.28035]
[1732870335494,0.8386,3566.5,3566.1,0.4368]
[1732870335495,6.35242524,3566.5,3566.1,0.4368]
[1732870335696,6.35242524,3566.5,3566.4,0.28035]
[1732870336800,7.59854043,3566.5,3566.4,0.28035]
[1732870337907,7.59854043,3566.5,3566.4,0.36800921]
[1732870339603,2.08471519,3566.5,3566.4,0.36800921]
[1732870340409,6.49014038,3566.5,3566.4,0.36800921]
[1732870340711,2.08471519,3566.5,3566.4,0.36800921]
[1732870340911,2.08471519,3566.5,3566.4,0.08765921]
[1732870341512,2.08471519,3566.5,3565.7,0.4079]
[1732870341709,4.40585103,3566.3,3565.8,0.08766489]
[1732870341910,4.40585103,3566.3,3565.8,0.28039]
[1732870341911,1.24611519,3565.9,3565.8,0.28039]
[1732870342115,1.24611519,3565.9,3565.8,0.36806242]
[1732870342613,2.06281519,3565.9,3565.8,0.36806242]
[1732870343711,2.06281519,3565.9,3565.8,0.08767242]
[1732870343913,6.46866622,3565.9,3565.8,0.08767242]
[1732870344815,6.46866622,3565.9,3565.8,0.36806242]
[1732870345810,2.06281519,3565.9,3565.8,0.36806242]
[1732870346116,4.82125103,3566.0,3565.9,0.28039]
[1732870346314,1.24611519,3566.0,3565.9,0.36806242]
[1732870346519,4.40585103,3566.1,3566.0,0.28038]
[1732870346812,4.40585103,3566.1,3566.0,0.36804503]
[1732870348617,4.82285103,3566.2,3566.0,0.08766503]
[1732870348915,0.417,3566.2,3566.1,0.36803503]
[1732870349916,0.417,3566.2,3566.1,0.28037]
[1732870350124,0.417,3566.2,3566.1,0.36802672]
[1732870350317,0.417,3566.2,3566.1,3.57582672]
[1732870352016,5.65196622,3566.5,3566.4,0.28035]
[1732870352217,5.65196622,3566.5,3566.4,0.36800672]
[1732870356420,4.40585103,3566.5,3566.4,0.36800672]
[1732870356623,4.40585103,3566.7,3566.4,0.08765672]
[1732870356826,4.40585103,3566.7,3566.1,3.90873]
[1732870356827,5.65196622,3566.7,3566.6,0.28033]
[1732870357023,5.65196622,3566.7,3566.6,0.36798672]
[1732870357324,5.65196622,3566.7,3566.6,41.16798672]
[1732870357520,5.65196622,3566.7,3566.6,41.08033]
[1732870357822,5.65196622,3566.7,3566.6,0.36798201]
[1732870358322,1.24611519,3566.7,3566.6,0.36798201]
[1732870359229,4.40533077,3566.7,3566.6,0.36798201]
[1732870359527,9.28933196,3567.6,3566.7,0.28032]
[1732870359528,4.40533077,3566.8,3566.7,0.28032]
[1732870359727,4.40533077,3567.0,3566.7,0.08765201]
[1732870360020,4.40533077,3567.0,3566.9,0.28031]
[1732870360223,5.65144596,3567.1,3567.0,0.2803]
[1732870360429,5.65144596,3567.1,3567.0,0.36795201]
[1732870360727,5.65144596,3567.1,3567.0,0.3679424]
[1732870362732,1.24611519,3567.1,3567.0,0.3679424]
[1732870364034,1.24611519,3567.1,3567.0,0.2803]
[1732870364234,6.74808187,3567.1,3567.0,0.36794183]
[1732870365028,5.50196668,3567.2,3567.0,0.08764183]
[1732870365333,5.50196668,3567.2,3566.9,3.2078]
[1732870365334,5.64617567,3567.2,3567.1,0.28029]
[1732870368332,1.24611519,3567.2,3567.1,0.28029]
[1732870368531,4.40006048,3567.4,3567.1,40.8]
[1732870368834,4.40006048,3567.4,3567.3,3.48808]
[1732870369738,2.19868982,3567.4,3567.3,3.48808]
[1732870370035,4.54414992,3567.5,3567.3,3.2078]
[1732870370225,4.54414992,3567.5,3567.4,0.28027]
[1732870370424,1.24611519,3567.5,3567.4,0.28027]
[1732870375434,1.24611519,3567.5,3567.4,0.36790147]
[1732870375633,3.44438575,3567.5,3567.4,0.36790147]
[1732870376839,1.24611519,3567.5,3567.4,0.36790147]
[1732870379738,1.24611519,3567.5,3567.4,0.28027]
[1732870380331,1.24611519,3567.5,3567.4,0.36789984]
[1732870384848,3.44373958,3567.5,3567.4,0.36789984]
[1732870388346,3.44373958,3567.5,3567.4,0.45553177]
[1732870389439,1.24611519,3567.5,3567.4,0.45553177]
[1732870389642,1.24611519,3567.5,3567.4,0.45553163]
[1732870391352,1.24611519,3567.5,3567.4,0.36790179]
[1732870392243,5.64136397,3567.5,3567.4,0.36790179]
[1732870394448,1.24611519,3567.5,3567.4,0.36790179]
[1732870395247,5.64785269,3567.5,3567.4,0.36790179]
[1732870395446,1.24611519,3567.5,3567.4,0.36790179]
[1732870396144,4.54749175,3567.5,3567.4,0.36790179]
[1732870396747,4.54749175,3567.5,3567.4,0.28027]
[1732870396947,4.54749175,3567.5,3567.4,0.36789761]
[1732870398252,1.24611519,3567.5,3567.4,0.36789761]
[1732870399050,1.24611519,3567.5,3567.4,0.08762761]
[1732870399253,7.02834187,3567.5,3567.4,0.08762761]
[1732870399655,6.74808187,3567.5,3567.4,0.08762761]
[1732870399854,12.77727202,3567.5,3567.4,0.36789761]
[1732870400057,1.24611519,3567.5,3567.4,0.36789761]
[1732870400255,1.24611519,3567.5,3567.4,0.36790725]
[1732870400764,7.84598598,3567.5,3567.4,0.36790725]
[1732870401057,1.24611519,3567.5,3567.4,0.36790725]
[1732870402962,7.84598598,3567.5,3567.4,0.36790725]
[1732870403451,12.78133181,3567.5,3567.4,0.28027]
[1732870404258,12.78133181,3567.5,3566.8,44.0078]
[1732870404453,12.78133181,3567.5,3566.8,3.48812]
[1732870404454,1.24611519,3566.9,3566.8,3.48812]
[1732870404653,1.24611519,3566.9,3566.8,0.36796415]
[1732870404859,7.86075712,3566.9,3566.8,0.36796415]
[1732870405156,12.79840041,3566.9,3566.8,0.28032]
[1732870405952,13.07871041,3566.9,3566.6,0.28033]
[1732870406161,2.49223038,3566.7,3565.7,3.2078]
[1732870406459,6.75795393,3565.8,3565.7,0.2804]
[1732870406659,6.61420649,3566.2,3566.1,0.28037]
[1732870406958,4.40967595,3566.2,3566.1,4.541591]
[1732870407153,5.51210774,3566.4,3566.1,4.541591]
[1732870407154,4.40967595,3566.4,3566.1,4.54157306]
[1732870407360,4.40967595,3566.5,3566.1,4.45391519]
[1732870407658,3.30609397,3566.3,3566.2,0.36801433]
[1732870408058,2.20392682,3566.4,3566.2,0.36801433]
[1732870408265,2.20392682,3566.4,3566.3,1.61412952]
[1732870409659,2.20392682,3566.5,3566.4,0.28035]
[1732870409961,3.30609397,3566.6,3566.5,0.28034]
[1732870409962,2.20392682,3566.6,3566.5,0.28034]
[1732870410160,2.20392682,3566.6,3566.5,4.82190952]
[1732870410358,2.20392682,3566.6,3566.5,4.82189597]
[1732870410661,2.20392682,3566.7,3566.6,0.28033]
[1732870410862,2.20392682,3566.8,3566.7,0.28032]
[1732870411066,2.20392682,3566.9,3566.8,0.28032]
[1732870411263,2.20392682,3566.9,3566.8,41.16795814]
[1732870411755,2.20392682,3567.0,3566.8,40.88763814]
[1732870411957,2.20392682,3567.0,3566.9,4.82186333]
[1732870412161,3.30609397,3567.1,3567.0,0.2803]
[1732870412368,3.30609397,3567.1,3567.0,0.77203814]
[1732870413971,3.30609397,3567.1,3567.0,0.7720327]
[1732870414670,3.30609397,3567.2,3567.1,0.28029]
[1732870414969,3.30609397,3567.3,3567.2,0.28028]
[1732870415174,3.30609397,3567.3,3567.2,0.3679127]
[1732870417777,5.65579114,3567.4,3567.3,0.28028]
[1732870417979,5.65579114,3567.4,3567.3,0.3679127]
[1732870421181,5.65579114,3567.4,3567.3,0.28028]
[1732870421478,4.40967595,3567.4,3567.3,0.36791205]
[1732870421679,5.51210774,3567.7,3567.4,0.28027]
[1732870421680,4.40967595,3567.5,3567.4,0.28027]
[1732870421982,6.75822293,3567.6,3567.5,0.28026]
[1732870422176,6.75822293,3567.6,3567.5,0.36789205]
[1732870424288,6.75822293,3567.6,3567.5,0.28026]
[1732870424480,6.75822293,3567.6,3567.5,0.36789011]
[1732870427988,6.75822293,3567.6,3567.5,0.36789124]
[1732870428388,1.24611519,3567.6,3567.5,0.36789124]
[1732870428778,6.7538588,3567.6,3567.5,0.36789124]
[1732870428986,1.24611519,3567.6,3567.5,0.36789124]
[1732870429182,6.75383882,3567.6,3567.5,0.36789124]
[1732870429486,5.50772363,3567.6,3567.5,0.36789124]
[1732870430089,4.40598012,3567.6,3567.5,0.36789124]
[1732870431285,4.40598012,3567.6,3567.5,0.28026]
[1732870431490,4.40598012,3567.6,3567.5,0.36788776]
[1732870431692,4.40598012,3567.6,3567.5,0.36788786]
[1732870433487,1.24611519,3567.7,3567.5,0.08762786]
[1732870433701,1.24611519,3567.7,3567.3,3.2078]
[1732870433702,1.24611519,3567.7,3567.6,0.28025]
[1732870433991,6.75383882,3567.7,3567.3,3.2078]
[1732870434191,1.24611519,3567.4,3567.3,3.48808]
[1732870434392,1.24611519,3567.4,3567.3,3.57571234]
[1732870434982,1.66781519,3567.4,3567.3,3.57571234]
[1732870435994,2.10531519,3567.4,3567.3,3.57571234]
[1732870436294,6.51113474,3567.4,3567.3,3.57571234]
[1732870437000,7.61303882,3567.4,3567.3,3.57571234]
[1732870438498,2.10531519,3567.4,3567.3,0.08763234]
[1732870438694,2.10531519,3567.4,3566.9,1.24611519]
[1732870438695,0.8592,3567.4,3566.9,1.24611519]
[1732870439000,4.4061748,3567.1,3567.0,0.36793476]
[1732870439194,4.4061748,3567.2,3567.1,0.28029]
[1732870439396,4.4061748,3567.2,3567.1,0.36792476]
[1732870440393,5.5077185,3567.3,3567.1,0.08763476]
[1732870440594,2.38559519,3567.4,3567.2,0.08763951]
[1732870440796,1.24611519,3567.3,3567.0,0.28029]
[1732870441097,5.50800394,3567.1,3567.0,0.28029]
[1732870441299,5.50800394,3567.1,3567.0,41.08029]
[1732870442294,5.50800394,3567.1,3567.0,41.1679344]
[1732870442699,1.24611519,3567.1,3567.0,40.8876444]
[1732870443001,1.24611519,3567.1,3567.0,0.0876444]
[1732870443201,1.52640519,3567.1,3567.0,0.0876444]
[1732870443591,1.24611519,3567.1,3567.0,0.3679444]
[1732870443801,1.24611519,3567.1,3567.0,0.2803]
[1732870444000,1.24611519,3567.1,3567.0,0.36794886]
[1732870444594,3.48808,3567.3,3567.1,0.28029]
[1732870444800,1.24611519,3567.2,3567.1,0.28029]
[1732870446000,1.24611519,3567.2,3566.4,3.2078]
[1732870446199,5.50728181,3567.1,3566.9,0.2803]
[1732870446404,5.50728181,3567.0,3566.9,0.2803]
[1732870446697,0.28031,3566.9,3566.2,2.24500003]
[1732870446903,2.20289666,3566.3,3566.2,2.52536003]
[1732870447102,3.30434499,3566.4,3566.2,2.24500003]
[1732870447300,2.62016606,3566.3,3566.2,2.52536003]
[1732870447700,2.20286606,3566.3,3566.2,3.77147522]
[1732870449903,2.20286606,3566.3,3566.2,44.65913236]
[1732870450802,2.20286606,3566.4,3566.2,44.37877236]
[1732870451001,2.20286606,3566.4,3566.3,0.77341714]
[1732870452401,2.20196066,3566.4,3566.3,0.77341714]
[1732870452803,2.20196066,3566.4,3566.3,0.36801714]
[1732870453004,0.4191,3566.4,3566.3,0.36801714]
[1732870453197,0.4191,3566.4,3566.3,41.16801714]
[1732870454107,0.4191,3566.4,3566.3,0.36801714]
[1732870455106,3.30434499,3566.5,3566.4,0.28035]
[1732870455303,3.30434499,3566.5,3566.4,0.77490714]
[1732870456611,3.30434499,3566.5,3566.4,0.68725]
[1732870456803,3.30434499,3566.6,3566.5,0.28034]
[1732870457004,0.4261,3566.7,3566.6,0.28033]
[1732870457200,0.4261,3566.7,3566.6,0.36798398]
[1732870458012,0.4261,3566.7,3566.6,0.28033]
[1732870458309,0.4261,3566.7,3566.6,0.367984]
[1732870459711,3.72789772,3566.7,3566.6,0.367984]
[1732870461615,0.4261,3566.7,3566.6,0.367984]
[1732870462513,3.72773716,3566.7,3566.6,0.367984]
[1732870462911,0.4261,3566.7,3566.6,0.367984]
[1732870464715,0.4261,3566.7,3566.6,0.087654]
[1732870465318,4.83189332,3566.7,3566.6,0.087654]
[1732870465611,0.4261,3566.7,3566.6,0.087654]
[1732870465818,1.67221519,3566.7,3566.6,0.087654]
[1732870466121,6.35832851,3566.7,3566.6,0.087654]
[1732870466320,6.07800851,3566.7,3566.6,0.087654]
[1732870467426,6.07800851,3566.7,3566.6,0.28033]
[1732870467617,6.07800851,3566.7,3566.6,0.36798822]
[1732870470523,6.07800851,3566.7,3566.6,0.28033]
[1732870470722,6.07800851,3566.7,3566.6,0.36798663]
[1732870473425,4.83189332,3566.7,3566.6,0.36798663]
[1732870474222,4.83189332,3566.7,3566.6,0.36798541]
[1732870474628,3.30227445,3566.7,3566.6,0.08765541]
[1732870474823,3.30227445,3566.8,3566.7,0.28032]
[1732870475022,3.30227445,3566.8,3566.7,0.80057541]
[1732870475216,4.40579332,3566.8,3566.7,0.52025541]
[1732870475623,4.40579332,3566.8,3566.7,0.80057541]
[1732870476224,4.40579332,3566.9,3566.8,0.28032]
[1732870476427,4.40579332,3567.0,3566.8,1.3337706]
[1732870476624,4.40579332,3567.0,3566.9,0.36796541]
[1732870477831,4.40579332,3567.0,3566.9,0.28031]
[1732870478124,4.40579332,3567.0,3566.9,0.36795072]
[1732870479331,5.50724165,3567.2,3567.1,0.28029]
[1732870479535,6.75335684,3567.2,3567.1,0.36793072]
[1732870480328,0.4131,3567.3,3567.2,0.28028]
[1732870480632,0.4131,3567.3,3567.2,0.36792072]
[1732870480835,5.92070139,3567.3,3567.2,0.36792072]
[1732870481229,5.92141608,3567.3,3567.2,0.36792072]
[1732870482234,0.4131,3567.3,3567.2,0.36792072]
[1732870482432,4.81967153,3567.3,3567.2,0.36792072]
[1732870483537,4.81967153,3567.3,3567.2,41.16792072]
[1732870487039,4.81967153,3567.3,3567.2,41.16791478]
[1732870488142,4.81967153,3567.3,3567.2,41.08028]
[1732870488337,4.81967153,3567.3,3567.2,41.16791463]
[1732870488642,4.81967153,3567.3,3567.2,41.16791467]
[1732870490332,0.4131,3567.3,3567.2,41.16791467]
[1732870490536,5.91980509,3567.3,3567.2,41.16791467]
[1732870491640,5.91980509,3567.3,3567.2,41.16791743]
[1732870493360,0.69338,3567.3,3567.0,0.2803]
[1732870493541,6.75237704,3567.1,3566.8,0.28032]
[1732870493852,1.24611519,3566.9,3566.8,0.28032]
[1732870494840,2.53091519,3566.9,3566.8,0.28032]
[1732870495344,2.53091519,3566.9,3566.7,0.28032]
[1732870495741,2.53091519,3566.9,3566.4,0.28035]
[1732870495742,0.28032,3566.7,3566.4,0.28035]
[1732870495943,2.53091519,3566.9,3566.3,40.8]
[1732870495944,1.24611519,3566.4,3566.3,41.08036]
[1732870496140,1.24611519,3566.4,3566.3,41.16801621]
[1732870496342,0.4458,3566.4,3566.3,41.16801621]
[1732870497444,3.7500812,3566.4,3566.3,41.16801621]
[1732870500549,3.7500812,3566.4,3566.3,0.36801621]
[1732870500755,3.7500812,3566.4,3566.3,0.80001621]
[1732870501052,3.7500812,3566.4,3566.3,41.60001621]
[1732870501351,0.4458,3566.4,3566.3,41.60001621]
[1732870501941,3.3042812,3566.5,3566.4,0.28035]
[1732870502146,6.61420649,3567.4,3566.4,0.28035]
[1732870502147,2.20261986,3566.8,3566.4,5.71649519]
[1732870502441,4.40570827,3567.2,3566.4,5.71649519]
[1732870502442,2.20261986,3567.1,3566.7,3.2078]
[1732870502645,0.4087,3567.1,3567.0,0.2803]
[1732870502852,0.4087,3567.1,3567.0,0.36795621]
[1732870503248,4.14868004,3567.1,3567.0,41.16795621]
[1732870504356,3.71208004,3567.1,3567.0,41.16793646]
[1732870505553,0.4087,3567.1,3567.0,41.16793646]
[1732870505749,2.61066934,3567.1,3567.0,41.16793646]
[1732870505944,0.4087,3567.1,3567.0,41.16793646]
[1732870506144,0.4087,3567.1,3567.0,41.0803]
[1732870506357,2.61066491,3567.1,3567.0,41.0803]
[1732870506656,2.6105926,3567.1,3567.0,41.0803]
[1732870507049,2.2018926,3567.1,3567.0,41.0803]
[1732870507248,2.2018926,3567.1,3567.0,42.32641519]
[1732870507654,2.2018926,3567.2,3567.0,42.04611519]
[1732870507857,2.2018926,3567.2,3567.1,3.48809]
[1732870509850,2.2018926,3567.2,3567.1,3.57571947]
[1732870510659,2.2018926,3567.2,3567.1,3.57571874]
[1732870511358,2.20136317,3567.2,3567.1,3.29542874]
[1732870511555,2.20136317,3567.2,3567.1,3.57571874]
[1732870512157,2.20136317,3567.2,3567.1,3.48809]
[1732870512454,2.20136317,3567.2,3567.1,3.57572315]
[1732870512455,3.30338004,3567.2,3567.1,3.57572315]